[Event "*** Titled Tuesday Blitz"]
[Site "Chess.com"]
[Date "2020.11.24"]
[Round "5"]
[White "K_A_S_T_O_R"]
[Black "GigaQuparadze"]
[Result "1-0"]
[WhiteElo "2814"]
[BlackElo "2844"]
[TimeControl "180+1"]
[EndTime "11:13:27 PST"]
[Termination "K_A_S_T_O_R won by resignation"]

1. e4 {[%clk 0:03:00.9]} 1... c5 {[%clk 0:02:58.7]} 2. Nf3 {[%clk 0:03:00.3]}
2... e6 {[%clk 0:02:58.7]} 3. d4 {[%clk 0:03:00.2]} 3... cxd4 {[%clk 0:02:59.2]}
4. Nxd4 {[%clk 0:03:00.8]} 4... a6 {[%clk 0:02:59.2]} 5. Bd3 {[%clk 0:03:00.7]}
5... Nc6 {[%clk 0:02:57.9]} 6. Nxc6 {[%clk 0:02:59.6]} 6... dxc6 {[%clk
0:02:58.8]} 7. Nd2 {[%clk 0:02:51.9]} 7... e5 {[%clk 0:02:58.6]} 8. a4 {[%clk
0:02:49.9]} 8... Nf6 {[%clk 0:02:58.2]} 9. O-O {[%clk 0:02:48.8]} 9... Be6
{[%clk 0:02:56.9]} 10. Qe2 {[%clk 0:02:42.5]} 10... Bc5 {[%clk 0:02:56]} 11. Bc4
{[%clk 0:02:40.8]} 11... Qe7 {[%clk 0:02:54.2]} 12. Nf3 {[%clk 0:02:23.3]} 12...
Bg4 {[%clk 0:02:53.7]} 13. h3 {[%clk 0:02:18.6]} 13... Bh5 {[%clk 0:02:53.7]}
14. a5 {[%clk 0:02:13.8]} 14... O-O {[%clk 0:02:52.9]} 15. g4 {[%clk 0:02:02]}
15... Bg6 {[%clk 0:02:52.2]} 16. Bg5 {[%clk 0:02:01.8]} 16... h6 {[%clk
0:02:48.9]} 17. Bh4 {[%clk 0:01:57]} 17... Rad8 {[%clk 0:02:44.8]} 18. c3 {[%clk
0:01:50.2]} 18... Rd6 {[%clk 0:02:40.4]} 19. Rfe1 {[%clk 0:01:42.6]} 19... Qe8
{[%clk 0:02:32.3]} 20. Qc2 {[%clk 0:01:40.6]} 20... Kh8 {[%clk 0:02:05.6]} 21.
Bg3 {[%clk 0:01:40.2]} 21... Nd7 {[%clk 0:02:05.4]} 22. Rad1 {[%clk 0:01:36.3]}
22... Bh7 {[%clk 0:02:02.7]} 23. b4 {[%clk 0:01:34.6]} 23... Rxd1 {[%clk
0:02:01.5]} 24. Rxd1 {[%clk 0:01:35.1]} 24... Ba7 {[%clk 0:02:01]} 25. Qd3
{[%clk 0:01:33.6]} 25... Nf6 {[%clk 0:01:58]} 26. Re1 {[%clk 0:01:33.2]} 26...
Bb8 {[%clk 0:01:54.7]} 27. Nh4 {[%clk 0:01:30.3]} 27... Qd8 {[%clk 0:01:49]} 28.
Qf3 {[%clk 0:01:19.6]} 28... Ne8 {[%clk 0:01:38.2]} 29. Nf5 {[%clk 0:01:17.7]}
29... Nd6 {[%clk 0:01:30.6]} 30. Rd1 {[%clk 0:01:15.5]} 30... Qf6 {[%clk
0:01:25.2]} 31. Be2 {[%clk 0:01:05.9]} 31... Nb5 {[%clk 0:01:19.2]} 32. Rd7
{[%clk 0:01:03]} 32... Bxf5 {[%clk 0:01:07.6]} 33. gxf5 {[%clk 0:00:52.8]} 33...
Nd6 {[%clk 0:01:07]} 34. Kf1 {[%clk 0:00:40]} 34... Rd8 {[%clk 0:00:58.3]} 35.
Bxe5 {[%clk 0:00:39.2]} 35... Qg5 {[%clk 0:00:47.6]} 36. Bf4 {[%clk 0:00:38.6]}
36... Qh4 {[%clk 0:00:47.5]} 37. Qg3 {[%clk 0:00:37.6]} 37... Qf6 {[%clk
0:00:43.8]} 38. e5 {[%clk 0:00:37.3]} 38... Nxf5 {[%clk 0:00:38.9]} 39. exf6
{[%clk 0:00:19.7]} 39... Nxg3+ {[%clk 0:00:38.9]} 40. Bxg3 {[%clk 0:00:20.6]}
40... Rxd7 {[%clk 0:00:39.2]} 41. fxg7+ {[%clk 0:00:21]} 41... Kxg7 {[%clk
0:00:39.9]} 42. Bxb8 {[%clk 0:00:21.5]} 42... f6 {[%clk 0:00:40.4]} 43. Bf4
{[%clk 0:00:19.8]} 43... Kg6 {[%clk 0:00:37.5]} 44. Be3 {[%clk 0:00:18.4]} 44...
h5 {[%clk 0:00:36.9]} 45. Bf3 {[%clk 0:00:18.3]} 45... f5 {[%clk 0:00:35.4]} 46.
Ke2 {[%clk 0:00:18.5]} 46... Rd6 {[%clk 0:00:35.3]} 47. Bf4 {[%clk 0:00:17.9]}
47... Rd8 {[%clk 0:00:34.1]} 48. Ke3 {[%clk 0:00:18.1]} 48... Rd7 {[%clk
0:00:30.3]} 49. Be5 {[%clk 0:00:17.7]} 49... Rd8 {[%clk 0:00:30.6]} 50. h4
{[%clk 0:00:16.2]} 50... Rd7 {[%clk 0:00:28.1]} 51. Be2 {[%clk 0:00:15.9]} 51...
Rd5 {[%clk 0:00:26.9]} 52. Bd4 {[%clk 0:00:13.9]} 52... Rd8 {[%clk 0:00:26.3]}
53. Bd3 {[%clk 0:00:13.4]} 53... Rf8 {[%clk 0:00:20.6]} 54. Kf4 {[%clk
0:00:13.8]} 54... Rf7 {[%clk 0:00:20.2]} 55. Be5 {[%clk 0:00:13.2]} 55... Rf8
{[%clk 0:00:20.5]} 56. Bc4 {[%clk 0:00:13.5]} 56... Re8 {[%clk 0:00:19.9]} 57.
Bd3 {[%clk 0:00:13.3]} 57... Rf8 {[%clk 0:00:20]} 58. f3 {[%clk 0:00:13.6]}
58... Rf7 {[%clk 0:00:19.8]} 59. Bc4 {[%clk 0:00:12.8]} 59... Rf8 {[%clk
0:00:19.8]} 60. Be6 {[%clk 0:00:12.5]} 60... Rd8 {[%clk 0:00:16.6]} 61. Bxf5+
{[%clk 0:00:12.5]} 61... Kf7 {[%clk 0:00:16.8]} 62. Be4 {[%clk 0:00:12.6]} 62...
Rd1 {[%clk 0:00:16.7]} 63. Kg5 {[%clk 0:00:12.5]} 63... Ke6 {[%clk 0:00:14.6]}
64. Bd4 {[%clk 0:00:12.4]} 64... Rh1 {[%clk 0:00:13.4]} 65. Kxh5 {[%clk
0:00:12.4]} 65... Kf7 {[%clk 0:00:13.9]} 66. Kg5 {[%clk 0:00:12.6]} 66... Rh2
{[%clk 0:00:13.6]} 67. h5 {[%clk 0:00:12.5]} 67... Rg2+ {[%clk 0:00:14.5]} 68.
Kf4 {[%clk 0:00:12.8]} 68... Rh2 {[%clk 0:00:14.8]} 69. Kg4 {[%clk 0:00:13]}
69... Rg2+ {[%clk 0:00:14.9]} 70. Kh3 {[%clk 0:00:13.1]} 70... Rg5 {[%clk
0:00:13.9]} 71. Kh4 {[%clk 0:00:13.4]} 71... Rg2 {[%clk 0:00:13.6]} 72. h6
{[%clk 0:00:13.7]} 72... Rh2+ {[%clk 0:00:12.9]} 73. Kg5 {[%clk 0:00:14]} 73...
Rg2+ {[%clk 0:00:13.1]} 74. Kf4 {[%clk 0:00:14.5]} 74... Rh2 {[%clk 0:00:13.1]}
75. h7 {[%clk 0:00:14.9]} 75... Rh4+ {[%clk 0:00:14]} 76. Kg5 {[%clk 0:00:15.1]}
76... c5 {[%clk 0:00:14.7]} 77. Kxh4 {[%clk 0:00:14.6]} 1-0

[Event "*** Titled Tuesday Blitz"]
[Site "Chess.com"]
[Date "2020.11.24"]
[Round "5"]
[White "korbul"]
[Black "Ural_bogatyr"]
[Result "1-0"]
[WhiteElo "2566"]
[BlackElo "2409"]
[TimeControl "180+1"]
[EndTime "11:13:30 PST"]
[Termination "korbul won by resignation"]

1. e4 {[%clk 0:02:56]} 1... e5 {[%clk 0:02:58.3]} 2. Nf3 {[%clk 0:02:55.3]} 2...
Nc6 {[%clk 0:02:58.8]} 3. Bc4 {[%clk 0:02:55.2]} 3... Nf6 {[%clk 0:02:58.5]} 4.
d3 {[%clk 0:02:54.6]} 4... h6 {[%clk 0:02:58.6]} 5. c3 {[%clk 0:02:50.5]} 5...
d6 {[%clk 0:02:58.8]} 6. h3 {[%clk 0:02:50.2]} 6... g5 {[%clk 0:02:58.1]} 7. b4
{[%clk 0:02:47.9]} 7... Bg7 {[%clk 0:02:56.4]} 8. a4 {[%clk 0:02:47.1]} 8... Ne7
{[%clk 0:02:54.8]} 9. a5 {[%clk 0:02:46.7]} 9... Ng6 {[%clk 0:02:54.4]} 10. g3
{[%clk 0:02:39.5]} 10... c6 {[%clk 0:02:52.3]} 11. Nbd2 {[%clk 0:02:35]} 11...
O-O {[%clk 0:02:48.3]} 12. Kf1 {[%clk 0:02:32]} 12... d5 {[%clk 0:02:45.8]} 13.
Bb3 {[%clk 0:02:31.1]} 13... g4 {[%clk 0:02:37.9]} 14. hxg4 {[%clk 0:02:30.5]}
14... Bxg4 {[%clk 0:02:38.8]} 15. Qc2 {[%clk 0:02:26.8]} 15... Nh5 {[%clk
0:02:16.6]} 16. Qa2 {[%clk 0:02:11.1]} 16... Qf6 {[%clk 0:02:12.2]} 17. Bd1
{[%clk 0:02:04.5]} 17... Rad8 {[%clk 0:02:03.7]} 18. Kg2 {[%clk 0:02:01.2]}
18... Nhf4+ {[%clk 0:01:54.1]} 19. gxf4 {[%clk 0:02:00.3]} 19... Nxf4+ {[%clk
0:01:55]} 20. Kf1 {[%clk 0:02:00.5]} 20... Bh3+ {[%clk 0:01:47.3]} 21. Rxh3
{[%clk 0:01:59.6]} 21... Nxh3 {[%clk 0:01:48.2]} 22. Nb3 {[%clk 0:01:56.9]}
22... dxe4 {[%clk 0:01:41.3]} 23. Ng1 {[%clk 0:01:52.6]} 23... Nxg1 {[%clk
0:01:16.4]} 24. Kxg1 {[%clk 0:01:52.1]} 24... exd3 {[%clk 0:01:14.6]} 25. Be3
{[%clk 0:01:49.7]} 25... Qg6+ {[%clk 0:01:11.3]} 26. Kf1 {[%clk 0:01:49]} 26...
Qe4 {[%clk 0:01:11.8]} 27. Ke1 {[%clk 0:01:45.2]} 27... d2+ {[%clk 0:00:43.4]}
28. Nxd2 {[%clk 0:01:43.5]} 28... Qh1+ {[%clk 0:00:43.2]} 29. Nf1 {[%clk
0:01:42.9]} 29... Kh8 {[%clk 0:00:37]} 30. Bxa7 {[%clk 0:01:38.4]} 30... Rd3
{[%clk 0:00:31.6]} 31. Be2 {[%clk 0:01:32.1]} 31... Rxc3 {[%clk 0:00:27.9]} 32.
Qd2 {[%clk 0:01:31.5]} 32... e4 {[%clk 0:00:25.6]} 33. Bd4 {[%clk 0:01:28.5]}
33... Qh3 {[%clk 0:00:09]} 34. Bxg7+ {[%clk 0:01:26.3]} 34... Kxg7 {[%clk
0:00:09.9]} 35. Qd4+ {[%clk 0:01:26.4]} 35... Kg8 {[%clk 0:00:10.2]} 36. Rd1
{[%clk 0:01:26.2]} 36... Rb3 {[%clk 0:00:06.6]} 37. Qxe4 {[%clk 0:01:19.1]}
37... Qc3+ {[%clk 0:00:06.5]} 38. Nd2 {[%clk 0:01:19]} 38... Rxb4 {[%clk
0:00:06.4]} 39. Qh1 {[%clk 0:01:10.1]} 39... Rd4 {[%clk 0:00:06]} 40. Qxh6
{[%clk 0:01:08.3]} 40... Rfd8 {[%clk 0:00:06]} 41. Qg5+ {[%clk 0:01:07.4]} 41...
Kf8 {[%clk 0:00:05.8]} 42. Qe3 {[%clk 0:01:04.6]} 42... Qxe3 {[%clk 0:00:04.4]}
43. fxe3 {[%clk 0:01:04.7]} 43... R4d5 {[%clk 0:00:05.3]} 44. Nc4 {[%clk
0:01:02.9]} 44... Rxd1+ {[%clk 0:00:04.6]} 45. Bxd1 {[%clk 0:01:03.8]} 45... Ke7
{[%clk 0:00:04.6]} 46. Ke2 {[%clk 0:01:04.1]} 46... Rd5 {[%clk 0:00:04.7]} 47.
e4 {[%clk 0:01:02.2]} 47... Rb5 {[%clk 0:00:04.4]} 48. Kd3 {[%clk 0:01:01.9]}
48... f6 {[%clk 0:00:03.3]} 49. Kd4 {[%clk 0:01:01.2]} 49... Rb4 {[%clk
0:00:02.5]} 50. Kc3 {[%clk 0:01:00.1]} 50... Rb5 {[%clk 0:00:02.8]} 51. Bg4
{[%clk 0:00:59.9]} 51... Rg5 {[%clk 0:00:03.1]} 52. Bf5 {[%clk 0:00:59.7]} 52...
Rg3+ {[%clk 0:00:02.2]} 53. Kd4 {[%clk 0:00:59.9]} 53... Rb3 {[%clk 0:00:02.6]}
54. Kc5 {[%clk 0:01:00.2]} 54... Rb5+ {[%clk 0:00:03.1]} 55. Kd4 {[%clk
0:01:00]} 55... Rb3 {[%clk 0:00:03.4]} 56. Bg4 {[%clk 0:00:49.7]} 56... Rb5
{[%clk 0:00:03.8]} 57. Bd1 {[%clk 0:00:49.4]} 57... Rb1 {[%clk 0:00:03.6]} 58.
Bc2 {[%clk 0:00:49.2]} 58... Rb5 {[%clk 0:00:03.2]} 59. Ba4 {[%clk 0:00:49.2]}
59... Rb4 {[%clk 0:00:03.4]} 60. Bc2 {[%clk 0:00:48.2]} 60... Rb5 {[%clk
0:00:03.7]} 61. Kc3 {[%clk 0:00:48.8]} 61... Rc5 {[%clk 0:00:03.7]} 62. Kb4
{[%clk 0:00:46.3]} 62... Rb5+ {[%clk 0:00:03.9]} 63. Kc3 {[%clk 0:00:46]} 63...
Rc5 {[%clk 0:00:04.8]} 64. Ba4 {[%clk 0:00:45.8]} 64... Rg5 {[%clk 0:00:04.8]}
65. Kb4 {[%clk 0:00:45.4]} 65... Rh5 {[%clk 0:00:04.5]} 66. Ne3 {[%clk
0:00:39.5]} 66... Re5 {[%clk 0:00:04.3]} 67. Bc2 {[%clk 0:00:38.5]} 67... Kd6
{[%clk 0:00:03.5]} 68. Nc4+ {[%clk 0:00:38.4]} 68... Ke6 {[%clk 0:00:03.4]} 69.
Nxe5 {[%clk 0:00:39.3]} 69... fxe5 {[%clk 0:00:01.9]} 70. Kc5 {[%clk 0:00:39.6]}
70... Kd7 {[%clk 0:00:02.8]} 71. Kb6 {[%clk 0:00:39.8]} 71... Kc8 {[%clk
0:00:03.1]} 72. Bb3 {[%clk 0:00:39.9]} 72... Kb8 {[%clk 0:00:03.1]} 73. Be6
{[%clk 0:00:39.6]} 73... Ka8 {[%clk 0:00:03.5]} 74. Kc7 {[%clk 0:00:39.9]} 74...
Ka7 {[%clk 0:00:03.7]} 75. Bc4 {[%clk 0:00:40]} 75... c5 {[%clk 0:00:03.3]} 76.
Kd6 {[%clk 0:00:39.7]} 76... b6 {[%clk 0:00:03]} 77. axb6+ {[%clk 0:00:39.2]}
77... Kxb6 {[%clk 0:00:03.9]} 78. Kxe5 {[%clk 0:00:40]} 78... Ka5 {[%clk
0:00:04.1]} 79. Kd6 {[%clk 0:00:40]} 79... Kb4 {[%clk 0:00:05]} 80. Bd5 {[%clk
0:00:40.2]} 80... c4 {[%clk 0:00:05.3]} 81. Bxc4 {[%clk 0:00:40]} 81... Kxc4
{[%clk 0:00:06.2]} 1-0

[Event "*** Titled Tuesday Blitz"]
[Site "Chess.com"]
[Date "2020.11.24"]
[Round "5"]
[White "Mazetovic"]
[Black "AlexeiShirov"]
[Result "0-1"]
[WhiteElo "2772"]
[BlackElo "2840"]
[TimeControl "180+1"]
[EndTime "11:13:31 PST"]
[Termination "AlexeiShirov won by resignation"]

1. e4 {[%clk 0:03:00.9]} 1... e5 {[%clk 0:02:59.2]} 2. Nf3 {[%clk 0:03:00.6]}
2... Nc6 {[%clk 0:02:59.3]} 3. Bb5 {[%clk 0:03:00.7]} 3... a6 {[%clk 0:02:59.4]}
4. Ba4 {[%clk 0:03:00.1]} 4... Nf6 {[%clk 0:02:59.3]} 5. Nc3 {[%clk 0:03:00.3]}
5... b5 {[%clk 0:02:42.3]} 6. Bb3 {[%clk 0:03:00.2]} 6... Be7 {[%clk 0:02:42.1]}
7. a4 {[%clk 0:02:59.7]} 7... b4 {[%clk 0:02:39.1]} 8. Nd5 {[%clk 0:02:59.9]}
8... Na5 {[%clk 0:02:37.5]} 9. Nxf6+ {[%clk 0:02:51.9]} 9... Bxf6 {[%clk
0:02:36.6]} 10. Bd5 {[%clk 0:02:49]} 10... c6 {[%clk 0:02:35.6]} 11. Ba2 {[%clk
0:02:49.1]} 11... c5 {[%clk 0:02:29.5]} 12. Bd5 {[%clk 0:02:43.8]} 12... Bb7
{[%clk 0:02:28.8]} 13. Bxb7 {[%clk 0:02:42.5]} 13... Nxb7 {[%clk 0:02:27.9]} 14.
b3 {[%clk 0:02:39.2]} 14... O-O {[%clk 0:02:09.4]} 15. d3 {[%clk 0:02:38.6]}
15... g6 {[%clk 0:02:04.7]} 16. O-O {[%clk 0:02:31.1]} 16... Bg7 {[%clk
0:02:02.8]} 17. Nd2 {[%clk 0:02:29.9]} 17... f5 {[%clk 0:01:55.5]} 18. Nc4
{[%clk 0:02:25]} 18... f4 {[%clk 0:01:53.5]} 19. f3 {[%clk 0:02:25.3]} 19... Qf6
{[%clk 0:01:46.1]} 20. Bd2 {[%clk 0:02:10.3]} 20... g5 {[%clk 0:01:43.2]} 21.
Be1 {[%clk 0:02:09.6]} 21... Nd8 {[%clk 0:01:34.3]} 22. Kf2 {[%clk 0:01:57.2]}
22... h5 {[%clk 0:01:28.3]} 23. h3 {[%clk 0:01:56.2]} 23... Rb8 {[%clk
0:01:23.2]} 24. Ke2 {[%clk 0:01:55.6]} 24... Ne6 {[%clk 0:01:20.7]} 25. Bf2
{[%clk 0:01:54.1]} 25... g4 {[%clk 0:01:20]} 26. hxg4 {[%clk 0:01:53.6]} 26...
hxg4 {[%clk 0:01:19.5]} 27. Rh1 {[%clk 0:01:49.3]} 27... g3 {[%clk 0:01:05.4]}
28. Bg1 {[%clk 0:01:49.2]} 28... Rfd8 {[%clk 0:00:47.3]} 29. Rh5 {[%clk
0:01:40.4]} 29... Qg6 {[%clk 0:00:45.8]} 30. Rh1 {[%clk 0:01:33.5]} 30... d5
{[%clk 0:00:45.4]} 31. exd5 {[%clk 0:01:30.8]} 31... Rxd5 {[%clk 0:00:45.1]} 32.
Rb1 {[%clk 0:01:27.3]} 32... Ng5 {[%clk 0:00:43.2]} 33. Kf1 {[%clk 0:01:25.7]}
33... e4 {[%clk 0:00:42.2]} 34. fxe4 {[%clk 0:01:23.9]} 34... Nxe4 {[%clk
0:00:42]} 35. Qf3 {[%clk 0:01:21.3]} 35... Nc3 {[%clk 0:00:41.5]} 36. Re1 {[%clk
0:01:20.9]} 36... Re8 {[%clk 0:00:40.7]} 37. Rxe8+ {[%clk 0:01:01.2]} 37... Qxe8
{[%clk 0:00:39.3]} 38. Rh4 {[%clk 0:00:58.5]} 38... Rd7 {[%clk 0:00:38.6]} 39.
Bxc5 {[%clk 0:00:39.7]} 39... Nd5 {[%clk 0:00:37.8]} 40. Rg4 {[%clk 0:00:28.5]}
40... Qe6 {[%clk 0:00:37.7]} 41. Rg5 {[%clk 0:00:25.6]} 41... Qh6 {[%clk
0:00:27.5]} 42. Qh5 {[%clk 0:00:23.3]} 42... Qxh5 {[%clk 0:00:26]} 43. Rxh5
{[%clk 0:00:23.6]} 43... f3 {[%clk 0:00:26.1]} 44. gxf3 {[%clk 0:00:20.6]} 44...
Rf7 {[%clk 0:00:24.5]} 45. Nd2 {[%clk 0:00:18.1]} 45... Nf4 {[%clk 0:00:23.5]}
46. Rg5 {[%clk 0:00:14.8]} 46... g2+ {[%clk 0:00:23]} 47. Rxg2 {[%clk
0:00:14.9]} 47... Nxg2 {[%clk 0:00:22.1]} 48. Kxg2 {[%clk 0:00:15.3]} 48... a5
{[%clk 0:00:21.1]} 49. Ne4 {[%clk 0:00:15.1]} 49... Bh6 {[%clk 0:00:18.5]} 50.
Bb6 {[%clk 0:00:14.6]} 50... Rf5 {[%clk 0:00:18.5]} 51. Kf2 {[%clk 0:00:13.8]}
51... Rh5 {[%clk 0:00:17.9]} 52. Kg3 {[%clk 0:00:12.9]} 52... Kf7 {[%clk
0:00:16.6]} 53. Kg4 {[%clk 0:00:12]} 53... Rh2 {[%clk 0:00:16]} 54. Bxa5 {[%clk
0:00:11.7]} 54... Bf8 {[%clk 0:00:15.9]} 55. Bb6 {[%clk 0:00:08.7]} 55... Rxc2
{[%clk 0:00:15.3]} 56. a5 {[%clk 0:00:09.2]} 56... Rb2 {[%clk 0:00:14.8]} 57. a6
{[%clk 0:00:09.6]} 57... Rxb3 {[%clk 0:00:14.9]} 58. a7 {[%clk 0:00:10.1]} 58...
Ra3 {[%clk 0:00:15]} 59. Nd2 {[%clk 0:00:10.5]} 59... Ke6 {[%clk 0:00:13.1]} 60.
Nc4 {[%clk 0:00:10.5]} 60... Ra6 {[%clk 0:00:12.9]} 61. Be3 {[%clk 0:00:09.7]}
61... b3 {[%clk 0:00:12.5]} 62. f4 {[%clk 0:00:10.1]} 62... Be7 {[%clk 0:00:11]}
63. f5+ {[%clk 0:00:10.5]} 63... Kf7 {[%clk 0:00:11.2]} 64. Bd4 {[%clk
0:00:09.5]} 64... Bf6 {[%clk 0:00:10.7]} 65. Bxf6 {[%clk 0:00:07.7]} 65... Kxf6
{[%clk 0:00:10.9]} 66. Kf3 {[%clk 0:00:06.3]} 66... Rxa7 {[%clk 0:00:10.6]} 67.
Ke3 {[%clk 0:00:06.9]} 67... Ra2 {[%clk 0:00:10.4]} 68. Kd4 {[%clk 0:00:04.4]}
68... b2 {[%clk 0:00:10.5]} 69. Nd2 {[%clk 0:00:04.8]} 69... Ra1 {[%clk
0:00:10.5]} 70. Ne4+ {[%clk 0:00:04.2]} 70... Kxf5 {[%clk 0:00:10.1]} 0-1

[Event "*** Titled Tuesday Blitz"]
[Site "Chess.com"]
[Date "2020.11.24"]
[Round "5"]
[White "GMKrikor"]
[Black "ChessicallyInclined"]
[Result "0-1"]
[WhiteElo "2718"]
[BlackElo "2540"]
[TimeControl "180+1"]
[EndTime "11:13:34 PST"]
[Termination "ChessicallyInclined won by resignation"]

1. e4 {[%clk 0:03:00.9]} 1... d6 {[%clk 0:02:50.6]} 2. d4 {[%clk 0:02:59.8]}
2... Nf6 {[%clk 0:02:49.5]} 3. Nc3 {[%clk 0:02:59.4]} 3... g6 {[%clk 0:02:49.9]}
4. Be3 {[%clk 0:02:55.9]} 4... c6 {[%clk 0:02:49.9]} 5. h3 {[%clk 0:02:48.9]}
5... Nbd7 {[%clk 0:02:49.2]} 6. a4 {[%clk 0:02:47.2]} 6... Qc7 {[%clk 0:02:48]}
7. Qd2 {[%clk 0:02:47.3]} 7... Bg7 {[%clk 0:02:46.6]} 8. Nf3 {[%clk 0:02:47.6]}
8... O-O {[%clk 0:02:46.1]} 9. Be2 {[%clk 0:02:34.5]} 9... e5 {[%clk 0:02:46]}
10. O-O {[%clk 0:02:32.8]} 10... exd4 {[%clk 0:02:26.9]} 11. Bxd4 {[%clk
0:02:27.3]} 11... Re8 {[%clk 0:02:26.5]} 12. Bd3 {[%clk 0:02:24.3]} 12... Ne5
{[%clk 0:02:25.3]} 13. Be2 {[%clk 0:02:15.6]} 13... Be6 {[%clk 0:01:45.8]} 14.
Rfe1 {[%clk 0:02:13.7]} 14... b6 {[%clk 0:01:45.8]} 15. Rad1 {[%clk 0:02:10.6]}
15... Rad8 {[%clk 0:01:44.8]} 16. Be3 {[%clk 0:02:03.1]} 16... Nxf3+ {[%clk
0:01:37.7]} 17. Bxf3 {[%clk 0:02:02.8]} 17... d5 {[%clk 0:01:38.2]} 18. Bf4
{[%clk 0:01:56.6]} 18... Qc8 {[%clk 0:01:34.2]} 19. exd5 {[%clk 0:01:49.4]}
19... Nxd5 {[%clk 0:01:34.4]} 20. Nxd5 {[%clk 0:01:49.6]} 20... Bxd5 {[%clk
0:01:35.3]} 21. Rxe8+ {[%clk 0:01:49.4]} 21... Rxe8 {[%clk 0:01:34.8]} 22. Bxd5
{[%clk 0:01:49.7]} 22... cxd5 {[%clk 0:01:35.7]} 23. c3 {[%clk 0:01:28.9]} 23...
Qc4 {[%clk 0:01:31.2]} 24. Be3 {[%clk 0:01:27.8]} 24... Rd8 {[%clk 0:01:20.2]}
25. Qc2 {[%clk 0:01:14.8]} 25... d4 {[%clk 0:01:17.9]} 26. b3 {[%clk 0:01:15.3]}
26... Qc8 {[%clk 0:01:12.1]} 27. Bg5 {[%clk 0:01:07.9]} 27... Rd5 {[%clk
0:01:03.9]} 28. Bc1 {[%clk 0:00:45.2]} 28... Qc5 {[%clk 0:00:28.5]} 29. Qe4
{[%clk 0:00:33.6]} 29... h5 {[%clk 0:00:22.6]} 30. Be3 {[%clk 0:00:22.8]} 30...
Qxc3 {[%clk 0:00:09.9]} 31. Qxd5 {[%clk 0:00:18.8]} 31... dxe3 {[%clk
0:00:10.4]} 32. fxe3 {[%clk 0:00:11.8]} 32... Qxe3+ {[%clk 0:00:11.3]} 33. Kh1
{[%clk 0:00:12]} 33... Be5 {[%clk 0:00:11.5]} 34. Qf3 {[%clk 0:00:10.8]} 34...
Qg5 {[%clk 0:00:08.3]} 35. Re1 {[%clk 0:00:10.3]} 35... Kg7 {[%clk 0:00:05.7]}
36. Rf1 {[%clk 0:00:08.2]} 36... Bf6 {[%clk 0:00:04.8]} 37. Qf4 {[%clk
0:00:06.9]} 37... Qxf4 {[%clk 0:00:03.6]} 38. Rxf4 {[%clk 0:00:07.8]} 38... a5
{[%clk 0:00:03.8]} 39. Rc4 {[%clk 0:00:08]} 39... Be7 {[%clk 0:00:04]} 40. Kg1
{[%clk 0:00:06.9]} 40... Bc5+ {[%clk 0:00:04.6]} 41. Kf1 {[%clk 0:00:07.6]}
41... f5 {[%clk 0:00:04.4]} 42. Ke2 {[%clk 0:00:08.5]} 42... Kf6 {[%clk
0:00:04.9]} 43. Kf3 {[%clk 0:00:08.6]} 43... Ke5 {[%clk 0:00:05.4]} 44. Ke2
{[%clk 0:00:06.8]} 44... g5 {[%clk 0:00:05.8]} 45. g4 {[%clk 0:00:03.6]} 45...
hxg4 {[%clk 0:00:05.6]} 46. hxg4 {[%clk 0:00:04.5]} 46... fxg4 {[%clk 0:00:05]}
47. Rxg4 {[%clk 0:00:05.4]} 47... Kf5 {[%clk 0:00:05.5]} 48. Kf3 {[%clk
0:00:05.1]} 48... Bd6 {[%clk 0:00:05.5]} 49. Rc4 {[%clk 0:00:04.8]} 49... Bc5
{[%clk 0:00:06]} 50. Ke2 {[%clk 0:00:03.1]} 50... g4 {[%clk 0:00:05.9]} 51. Kf1
{[%clk 0:00:03.4]} 51... Kg5 {[%clk 0:00:05.7]} 52. Kg2 {[%clk 0:00:04]} 52...
Kh4 {[%clk 0:00:06.2]} 53. Re4 {[%clk 0:00:04.2]} 53... Kg5 {[%clk 0:00:06.3]}
54. Kg3 {[%clk 0:00:03.6]} 54... Bd6+ {[%clk 0:00:06.3]} 55. Kg2 {[%clk
0:00:04.2]} 55... Kf5 {[%clk 0:00:06.8]} 56. Rc4 {[%clk 0:00:03.9]} 56... Bc5
{[%clk 0:00:07.1]} 57. Kg3 {[%clk 0:00:04]} 57... Bd6+ {[%clk 0:00:07.2]} 58.
Kh4 {[%clk 0:00:04.5]} 58... g3 {[%clk 0:00:07]} 59. Kh3 {[%clk 0:00:04.6]}
59... Ke6 {[%clk 0:00:07.1]} 60. Kg2 {[%clk 0:00:04.9]} 60... Kd5 {[%clk
0:00:07.5]} 61. Rg4 {[%clk 0:00:05.4]} 61... Kc5 {[%clk 0:00:06.8]} 62. Rc4+
{[%clk 0:00:04.4]} 62... Kd5 {[%clk 0:00:07.2]} 63. Kf3 {[%clk 0:00:05.3]} 63...
Be5 {[%clk 0:00:07.2]} 64. Rc1 {[%clk 0:00:04.1]} 64... Bd6 {[%clk 0:00:07.3]}
65. Rd1+ {[%clk 0:00:04.1]} 65... Kc5 {[%clk 0:00:07.7]} 66. Rd2 {[%clk
0:00:03.5]} 66... Be5 {[%clk 0:00:07.9]} 67. Ke3 {[%clk 0:00:02.1]} 67... Bc3
{[%clk 0:00:07.8]} 68. Rc2 {[%clk 0:00:02.2]} 68... Kb4 {[%clk 0:00:08.3]} 69.
Kd3 {[%clk 0:00:02.7]} 69... Be1 {[%clk 0:00:08.5]} 70. Rb2 {[%clk 0:00:01.9]}
70... Bf2 {[%clk 0:00:08.7]} 71. Rc2 {[%clk 0:00:01.9]} 71... g2 {[%clk
0:00:08.8]} 72. Rc4+ {[%clk 0:00:02.8]} 72... Kxb3 {[%clk 0:00:09.1]} 73. Rg4
{[%clk 0:00:02]} 73... g1=Q {[%clk 0:00:09.6]} 74. Re4 {[%clk 0:00:02.8]} 74...
Qg3+ {[%clk 0:00:09.5]} 75. Ke2 {[%clk 0:00:02.1]} 75... Bc5 {[%clk 0:00:09.7]}
0-1